bitfinex-derivatives/quotes_SOLF0:USTF0_20241230
["timestamp","ask_amount","ask_price","bid_price","bid_amount"]
[1735525952286,12.48844789,190.95,190.84,6.3453]
[1735525952487,15.72844789,190.98,190.85,15.72844789]
[1735525952888,18.35154789,190.98,190.91,2.624]
[1735525954203,6.12508856,191.03,190.96,2.6233]
[1735525955193,2.6225,191.03,190.96,2.6233]
[1735525955902,2.6226,191.02,190.96,2.6233]
[1735525963004,2.6224,191.03,190.97,2.6232]
[1735525963406,12.48844789,191.04,190.99,2.6229]
[1735525963606,12.48844789,191.07,190.96,3.24]
[1735525963803,124.55201095,191.1,190.97,12.48844789]
[1735525964006,127.17361095,191.1,191.0,2.6227]
[1735525964308,127.17361095,191.1,191.01,9.3909]
[1735525964611,124.55201095,191.1,191.05,2.6221]
[1735525965003,6.22859729,191.12,191.05,2.6221]
[1735525967903,6.22859729,191.12,191.06,2.622]
[1735525968108,2.6213,191.12,191.06,2.622]
[1735525970308,12.48844789,191.13,191.06,2.622]
[1735525970515,2.6214,191.11,191.06,2.622]
[1735525971109,12.48844789,191.1,191.01,6.1509]
[1735525971508,2.6223,191.04,191.01,3.0689]
[1735525971715,12.48844789,191.07,190.97,3.24]
[1735525972112,12.48844789,191.04,190.97,3.24]
[1735525973315,15.11074789,191.04,190.98,2.6231]
[1735525974418,2.6226,191.02,190.97,3.24]
[1735525974621,12.48844789,191.04,190.97,3.24]
[1735525974816,12.48844789,191.04,190.95,6.3118]
[1735525975012,2.623,190.99,190.95,6.3118]
[1735525975213,12.48844789,191.01,190.95,3.2459]
[1735525975610,2.6232,190.98,190.95,3.2459]
[1735525975815,12.48844789,191.01,190.94,3.2636]
[1735525976011,12.48844789,191.01,190.89,3.0861]
[1735525976320,2.6235,190.95,190.89,6.1739]
[1735525976518,12.48844789,190.98,190.89,6.1739]
[1735525976917,2.6235,190.96,190.89,6.1739]
[1735525977318,12.48844789,190.98,190.89,6.1739]
[1735525978122,2.6237,190.95,190.89,8.7983]
[1735525980125,12.48844789,190.98,190.89,6.1739]
[1735525981325,2.6235,190.96,190.89,8.7982]
[1735525982228,12.48844789,190.98,190.89,6.1739]
[1735525982929,2.6236,190.95,190.89,6.1739]
[1735525983628,2.6236,190.95,190.89,8.7983]
[1735525985527,12.48844789,190.98,190.89,8.7983]
[1735525985725,2.6235,190.95,190.89,8.7983]
[1735525986335,124.59562533,191.01,190.89,6.1739]
[1735525986724,12.48844789,190.98,190.89,6.1739]
[1735525988033,2.6238,190.94,190.89,6.1739]
[1735525989535,2.6238,190.93,190.89,6.1739]
[1735525989736,12.48844789,190.95,190.86,5.159451]
[1735525990131,3.24,190.94,190.86,5.159451]
[1735525990641,3.24,190.94,190.82,3.24]
[1735525990936,3.24,190.94,190.84,2.625]
[1735525990937,2.6245,190.89,190.84,2.625]
[1735525992240,2.6242,190.9,190.84,2.625]
[1735525994836,12.48844789,190.92,190.78,73.8315943]
[1735525995048,12.48844789,190.89,190.78,2.943]
[1735525995340,12.48844789,190.86,190.78,2.943]
[1735525995540,12.48844789,190.83,190.71,12.48844789]
[1735525995737,15.72844789,190.83,190.71,12.48844789]
[1735525995932,2.6259,190.79,190.72,2.6267]
[1735525997745,2.6259,190.79,190.73,2.6265]
[1735525997948,15.72844789,190.83,190.73,2.6265]
[1735525998149,2.6256,190.8,190.73,2.6265]
[1735525998349,15.72844789,190.83,190.75,2.6263]
[1735525998751,2.6254,190.82,190.75,2.6263]
[1735525999049,15.72844789,190.83,190.71,12.48844789]
[1735525999248,15.72844789,190.83,190.76,2.6261]
[1735526000152,18.35374789,190.83,190.76,2.6261]
[1735526000451,18.35374789,190.83,190.77,2.6259]
[1735526000746,2.625,190.85,190.71,12.48844789]
[1735526000948,2.625,190.85,190.75,3.24]
[1735526001148,2.625,190.85,190.79,2.6257]
[1735526002651,12.48844789,190.86,190.76,6.0685]
[1735526002851,3.24,190.87,190.76,9.1953]
[1735526003355,3.24,190.87,190.82,2.6253]
[1735526004049,3.24,190.87,190.83,2.6252]
[1735526004249,2.6245,190.88,190.83,2.6252]
[1735526004946,12.48844789,190.89,190.81,2.6254]
[1735526005453,12.48844789,190.86,190.81,2.6254]
[1735526005750,15.11324789,190.86,190.81,2.6254]
[1735526006151,15.11324789,190.86,190.82,2.6253]
[1735526006448,12.48844789,190.89,190.77,12.48844789]
[1735526007754,15.11284789,190.89,190.77,12.48844789]
[1735526007948,12.48844789,190.89,190.77,12.48844789]
[1735526008247,18.35254789,190.92,190.85,2.6249]
[1735526008847,15.72844789,190.92,190.85,2.6249]
[1735526009046,2.6241,190.91,190.85,2.6249]
[1735526010947,2.6241,190.91,190.86,2.6248]
[1735526012853,2.6242,190.9,190.86,2.6248]
[1735526014856,12.48844789,190.92,190.82,3.24]
[1735526015057,2.6244,190.89,190.82,3.24]
[1735526016554,2.6244,190.89,190.84,2.625]
[1735526018059,2.6247,190.87,190.82,3.24]
[1735526018361,12.48844789,190.89,190.82,3.24]
[1735526018559,12.48844789,190.89,190.78,3.24]
[1735526019058,2.6249,190.85,190.8,2.6256]
[1735526019461,115.39328854,190.94,190.76,80.09523937]
[1735526019761,12.48844789,190.86,190.76,80.09523937]
[1735526019957,12.48844789,190.83,190.76,80.09523937]
[1735526020163,12.48844789,190.83,190.76,76.96843937]
[1735526020463,2.6257,190.8,190.76,76.96843937]
[1735526020859,2.6257,190.8,190.76,6.0685]
[1735526021963,12.48844789,190.83,190.72,2.6267]
[1735526022368,2.6259,190.78,190.72,2.6267]
[1735526026868,2.6259,190.78,190.7,3.24]
[1735526027073,2.6259,190.78,190.73,2.6266]
[1735526028763,12.48844789,190.8,190.7,3.24]
[1735526028971,12.48844789,190.83,190.71,12.48844789]
[1735526030465,3.24,190.85,190.7,15.76312529]
[1735526030466,2.6255,190.81,190.7,15.76312529]
[1735526030664,12.52312529,190.82,190.7,15.76312529]
[1735526030866,12.52312529,190.82,190.77,2.6259]
[1735526031267,8.04586719,190.81,190.77,2.6259]
[1735526032163,7.15283223,190.88,190.76,8.04586719]
[1735526032470,8.04586719,190.86,190.8,8.04586719]
[1735526032765,15.19869942,190.89,190.85,2.6249]
[1735526033666,7.15283223,190.89,190.83,3.24]
[1735526033869,8.04586719,190.9,190.83,3.24]
[1735526034371,8.03822937,190.9,190.86,2.6247]
[1735526035271,2.624,190.92,190.86,2.6247]
[1735526035477,12.50903279,190.93,190.83,3.24]
[1735526035969,12.50903279,190.93,190.84,2.6249]
[1735526035970,2.624,190.92,190.84,2.6249]
[1735526036171,2.624,190.92,190.83,3.24]
[1735526037070,2.624,190.92,190.85,2.6248]
[1735526037869,12.50903279,190.96,190.83,15.74903279]
[1735526038764,15.13253279,190.96,190.9,2.6242]
[1735526039862,12.50903279,190.96,190.88,2.6244]
[1735526040067,12.50903279,190.96,190.83,15.74903279]
[1735526040672,15.13283279,190.93,190.83,3.24]
[1735526040868,6.87031177,191.0,190.82,70.87604295]
[1735526040869,12.50903279,190.9,190.82,70.87604295]
[1735526041173,12.50903279,190.9,190.8,3.24]
[1735526041473,2.6246,190.87,190.8,5.8656]
[1735526042275,2.6246,190.87,190.81,2.6254]
[1735526044376,12.50903279,190.9,190.82,2.6253]
[1735526044377,2.6245,190.88,190.82,2.6253]
[1735526045776,12.50903279,190.9,190.8,3.24]
[1735526047268,2.6244,190.89,190.83,2.6251]
[1735526048173,2.6241,190.91,190.85,2.6249]
[1735526048364,12.50903279,190.93,190.8,15.74903279]
[1735526048570,12.50903279,190.9,190.8,3.24]
[1735526048872,12.50903279,190.9,190.77,21.75873279]
[1735526049071,12.50903279,190.9,190.78,3.24]
[1735526050376,2.6246,190.87,190.81,2.6254]
[1735526050873,12.50903279,190.9,190.81,2.6254]
[1735526051066,2.6246,190.88,190.81,2.6254]
[1735526051269,12.50903279,190.9,190.79,2.6256]
[1735526051472,15.74903279,190.9,190.79,2.6256]
[1735526051675,2.6251,190.84,190.79,2.6256]
[1735526053076,2.6251,190.84,190.77,9.2497]
[1735526053077,12.50903279,190.84,190.77,6.0219]
[1735526053278,12.50903279,190.84,190.76,5.19291079]
[1735526053973,2.6257,190.8,190.76,5.19291079]
[1735526054777,2.6253,190.83,190.77,2.626]
[1735526054975,12.50903279,190.84,190.76,5.19291079]
[1735526055185,12.50903279,190.84,190.74,3.24]
[1735526055476,2.6259,190.79,190.74,3.24]
[1735526056076,2.6256,190.8,190.75,2.6263]
[1735526059077,2.6255,190.81,190.76,2.6261]
[1735526060079,2.6255,190.81,190.76,2.626]
[1735526060276,8.0455722,190.84,190.76,8.0455722]
[1735526061183,8.0455722,190.86,190.78,8.0455722]
[1735526061379,8.0455722,190.86,190.79,3.1524]
[1735526061986,8.0455722,190.86,190.81,2.6253]
[1735526062172,8.04231687,190.86,190.81,2.6253]
[1735526063281,12.51609953,190.88,190.79,3.1524]
[1735526064579,2.625,190.85,190.8,2.6255]
[1735526069287,12.51609953,190.88,190.79,3.1524]
[1735526069480,2.6251,190.84,190.79,5.7781]
[1735526075881,12.51609953,190.88,190.77,3.0708]
[1735526076084,2.6256,190.8,190.69,3.1335]
[1735526076387,12.51609953,190.84,190.72,3.24]
[1735526077186,12.51609953,190.81,190.7,3.2182]
[1735526077691,12.51609953,190.84,190.7,3.2182]
[1735526078493,12.51609953,190.84,190.72,12.51609953]
[1735526078691,7.15283223,190.86,190.72,12.51609953]
[1735526078984,7.15283223,190.86,190.75,12.51609953]
[1735526079289,7.15283223,190.86,190.76,3.24]
[1735526079488,12.51609953,190.87,190.77,6.0078]
[1735526079697,7.15283223,190.89,190.82,2.6253]
[1735526080493,12.51609953,190.9,190.82,2.6253]
[1735526081196,2.6245,190.88,190.82,2.6253]
[1735526082494,28.70428333,190.93,190.81,3.24]
[1735526082796,12.51441103,190.92,190.81,3.24]
[1735526083199,8.03797163,190.9,190.84,8.03797163]
[1735526083401,8.03797163,190.9,190.87,2.6246]
[1735526083598,8.03797163,190.93,190.86,8.03797163]
[1735526083998,8.03797163,190.93,190.88,2.6245]
[1735526084303,8.03608946,190.93,190.88,2.6245]
[1735526085200,12.50721077,190.94,190.86,6.5009]
[1735526085404,12.50721077,190.91,190.81,3.24]
[1735526086301,2.6246,190.88,190.82,2.6252]
[1735526087103,2.6247,190.87,190.8,2.6255]
[1735526087401,12.50721077,190.88,190.79,6.4774]
[1735526087803,2.625,190.85,190.79,6.4774]
[1735526088200,12.50721077,190.88,190.79,6.4774]
[1735526088408,2.6251,190.84,190.79,6.4774]
[1735526092798,2.6247,190.87,190.81,2.6254]
[1735526093000,12.50721077,190.91,190.79,6.4774]
[1735526093200,12.50721077,190.91,190.79,18.98461077]
[1735526093406,2.6243,190.9,190.79,18.98461077]
[1735526094204,2.6243,190.9,190.84,2.625]
[1735526094401,15.13131077,190.91,190.82,3.24]
[1735526095408,15.13131077,190.91,190.85,2.6249]
[1735526097206,15.13131077,190.91,190.86,2.6248]
[1735526098012,7.15283223,190.96,190.89,2.6243]
[1735526098013,12.50721077,190.94,190.89,2.6243]
[1735526098309,12.50721077,190.94,190.82,15.74721077]
[1735526098607,2.6239,190.93,190.82,15.74721077]
[1735526098911,12.50721077,190.94,190.82,3.24]
[1735526099106,2.624,190.92,190.87,2.6246]
[1735526102311,2.624,190.92,190.88,2.6245]
[1735526103816,28.70428333,190.99,190.87,3.24]
[1735526103817,12.50721077,190.97,190.87,3.24]
[1735526104123,28.70428333,190.99,190.88,18.73141077]
[1735526104319,2.623,190.99,190.93,2.6238]
[1735526104520,122.89911067,191.0,190.94,3.24]
[1735526104909,122.89911067,191.0,190.95,2.6234]
[1735526105313,122.89911067,191.0,190.94,3.24]
[1735526105515,8.03390484,190.96,190.91,3.24]
[1735526106214,115.74627844,191.0,190.91,11.27187324]
[1735526106412,8.03187324,190.99,190.93,8.03187324]
[1735526106616,8.03187324,190.99,190.91,3.24]
[1735526106617,8.03187324,190.99,190.91,11.27187324]
[1735526107017,8.03187324,190.99,190.94,2.6236]
[1735526107219,8.03187324,190.97,190.91,11.27187324]
[1735526107521,2.6235,190.96,190.91,3.24]
[1735526108318,2.6232,190.98,190.92,2.6238]
[1735526108618,115.74627844,191.0,190.91,3.24]
[1735526109009,12.50178041,190.99,190.91,3.24]
[1735526110418,2.6236,190.95,190.91,3.24]
[1735526110814,2.6236,190.95,190.91,5.8641]
[1735526111013,12.50178041,190.99,190.91,3.24]
[1735526111221,2.6238,190.94,190.91,3.24]
[1735526111917,12.50178041,190.99,190.88,6.2242]
[1735526112118,12.50178041,190.96,190.88,6.2242]
[1735526112814,2.6237,190.94,190.88,8.8486]
[1735526113418,12.50178041,190.96,190.88,8.8486]
[1735526113618,2.6238,190.93,190.88,6.2242]
[1735526113919,12.50178041,190.96,190.86,6.2375]
[1735526114119,2.6242,190.91,190.86,6.2375]
[1735526114419,2.6242,190.91,190.86,8.8622]
[1735526115320,2.624,190.92,190.87,2.6246]
[1735526115716,12.50178041,190.96,190.86,6.2375]
[1735526116323,2.6241,190.91,190.86,8.8622]
[1735526118025,2.6239,190.93,190.86,6.2375]
[1735526118823,12.50178041,190.96,190.86,6.2375]
[1735526119913,2.6237,190.94,190.89,2.6243]
[1735526121516,12.50178041,190.96,190.86,6.2375]
[1735526121716,12.50178041,190.96,190.86,2.9975]
[1735526121918,12.50178041,190.96,190.85,3.24]
[1735526122122,2.6244,190.9,190.86,2.6248]
[1735526125027,12.50178041,190.96,190.83,6.1839]
[1735526125226,12.50178041,190.93,190.83,6.1839]
[1735526125826,2.6249,190.86,190.83,6.1839]
[1735526128925,2.6249,190.86,190.81,2.6254]
[1735526129124,2.6249,190.86,190.81,5.8654]
[1735526130230,8.04073142,190.84,190.78,17.58103142]
[1735526130535,8.04073142,190.82,190.77,70.89535158]
[1735526131234,10.66603142,190.82,190.77,70.89535158]
[1735526132523,10.66603142,190.82,190.77,73.52135158]
[1735526133330,2.6256,190.8,190.77,70.89535158]
[1735526133536,8.04073142,190.8,190.73,3.24]
[1735526133932,2.6258,190.79,190.73,13.90713142]
[1735526134435,3.22,190.86,190.75,8.04073142]
[1735526134735,8.04073142,190.83,190.75,8.04073142]
[1735526134931,3.22,190.86,190.74,3.22]
[1735526134932,8.04073142,190.81,190.74,3.22]
[1735526135230,8.04073142,190.81,190.73,11.26073142]
[1735526135831,8.04073142,190.81,190.7,9.2884]
[1735526136130,8.04073142,190.81,190.73,8.04073142]
[1735526136531,2.6258,190.79,190.73,10.66723142]
[1735526136926,2.6252,190.83,190.77,10.66663142]
[1735526137130,8.04073142,190.89,190.81,8.04073142]
[1735526137636,2.6245,190.88,190.81,8.04073142]
[1735526137831,8.04073142,190.89,190.81,8.04073142]
[1735526138037,28.70428333,190.9,190.83,8.04073142]
[1735526138237,8.04073142,190.91,190.84,3.22]
[1735526140436,8.03834103,190.92,190.85,8.03834103]
[1735526141330,2.624,190.92,190.86,2.6246]
[1735526142039,2.6238,190.94,190.87,2.6246]
[1735526142334,12.5072792,190.98,190.85,15.7272792]
[1735526142537,2.6233,190.97,190.91,2.624]
[1735526142736,12.5072792,190.98,190.86,3.22]
[1735526143037,9.77593223,190.99,190.94,2.6237]
[1735526143237,112.11596667,191.0,190.91,3.22]
[1735526143839,112.11596667,191.0,190.95,2.6235]
[1735526144038,112.11596667,191.0,190.91,3.22]
[1735526145127,2.6231,190.98,190.91,3.22]
[1735526146137,114.73896667,191.0,190.94,2.6236]
[1735526151145,2.6225,191.03,190.98,2.6231]
[1735526151349,19.66011143,191.07,190.96,3.22]
[1735526151536,7.15283223,191.07,190.97,21.9760792]
[1735526151846,31.32608333,191.08,191.02,2.6225]
[1735526152047,31.32608333,191.08,190.98,6.4312]
[1735526152940,28.70428333,191.08,191.0,12.5072792]
[1735526153144,12.5072792,191.1,191.0,12.5072792]
[1735526153345,2.6216,191.1,191.03,2.6223]
[1735526153745,12.5072792,191.13,191.03,2.6223]
[1735526153940,2.6213,191.12,191.03,3.22]
[1735526155537,12.5072792,191.13,191.06,2.622]
[1735526155733,12.5072792,191.13,191.03,3.22]
[1735526156842,2.6217,191.09,191.03,2.6223]
[1735526157343,2.6217,191.09,191.01,3.22]
[1735526158247,12.5072792,191.13,191.01,3.22]
[1735526158448,2.6215,191.1,191.05,2.6222]
[1735526159952,2.6218,191.08,191.02,2.6225]
[1735526160247,12.5072792,191.1,191.02,2.6225]
[1735526160448,12.5072792,191.1,190.98,3.2112]
[1735526160644,12.5072792,191.1,190.99,3.22]
[1735526160851,12.5072792,191.13,191.0,15.7272792]
[1735526161046,16.13462389,191.16,191.03,12.5072792]
[1735526161444,3.62734469,191.16,191.06,12.5072792]
[1735526161653,3.62734469,191.16,191.07,12.5355]
[1735526162653,3.62734469,191.16,191.07,9.3155]
[1735526162848,3.62734469,191.16,191.07,6.1798]
[1735526162849,16.13462389,191.16,191.07,6.1798]
[1735526163048,12.5072792,191.13,191.04,3.22]
[1735526163250,12.5072792,191.13,191.03,3.22]
[1735526163951,2.6214,191.11,191.05,2.6222]
[1735526164155,12.5072792,191.13,191.03,3.22]
[1735526164354,3.62734469,191.16,191.03,15.7272792]
[1735526164556,3.62734469,191.16,191.06,12.5072792]
[1735526164856,3.62734469,191.16,191.09,2.6216]
[1735526166457,2.6208,191.15,191.09,2.6216]
[1735526168058,2.6208,191.15,191.08,3.22]
[1735526168259,3.62734469,191.16,191.08,3.22]
[1735526168463,3.62734469,191.16,191.09,9.0144]
[1735526168761,2.6196,191.24,191.11,13.16947881]
[1735526168957,13.16947881,191.27,191.15,13.16947881]
[1735526169157,13.16947881,191.27,191.16,3.22]
[1735526169659,13.16947881,191.27,191.17,6.1423]
[1735526170757,13.16947881,191.27,191.18,3.22]
[1735526171959,15.78867881,191.27,191.2,2.62]
[1735526172263,5.22337636,191.36,191.18,16.38947881]
[1735526172264,13.16947881,191.3,191.18,16.38947881]
[1735526172458,5.22337636,191.36,191.21,13.16947881]
[1735526172459,13.16947881,191.33,191.21,13.16947881]
[1735526172859,13.16947881,191.33,191.26,2.6193]
[1735526172860,2.6186,191.32,191.26,2.6193]
[1735526173063,13.16947881,191.33,191.24,3.22]
[1735526174466,15.78777881,191.33,191.27,2.6191]
[1735526175958,15.78777881,191.33,191.24,3.22]
[1735526176162,2.6182,191.35,191.29,2.6189]
[1735526176563,18.39285517,191.36,191.31,2.6186]
[1735526178169,5.22337636,191.36,191.32,2.6183]
[1735526178558,5.22337636,191.36,191.27,13.16947881]
[1735526178762,7.84127636,191.36,191.3,2.6187]
[1735526180464,13.16947881,191.33,191.26,3.019]
[1735526180769,18.39285517,191.36,191.26,3.019]
[1735526181169,2.6181,191.35,191.29,2.6189]
[1735526181368,2.6181,191.35,191.3,3.22]
[1735526182067,21.29485767,191.45,191.3,3.22]
[1735526182068,2.6176,191.39,191.33,2.6183]
[1735526182466,13.16947881,191.42,191.3,16.38947881]
[1735526183369,15.78667881,191.42,191.36,2.6179]
[1735526183570,2.6172,191.42,191.36,2.6179]
[1735526183765,13.16947881,191.45,191.35,3.22]
[1735526184077,2.6169,191.44,191.38,2.6176]
[1735526184469,13.16947881,191.48,191.36,6.1083]
[1735526185270,13.16947881,191.48,191.36,19.27777881]
[1735526185478,286.67442359,191.52,191.39,13.16947881]
[1735526185666,286.67442359,191.52,191.4,3.22]
[1735526185867,2.616,191.51,191.4,3.22]
[1735526186369,286.67442359,191.52,191.4,3.22]
[1735526186566,2.6161,191.5,191.4,3.22]
[1735526187272,13.16947881,191.49,191.36,19.27777881]
[1735526187573,13.16947881,191.49,191.37,4.18188181]
[1735526188078,2.6168,191.45,191.39,2.6175]
[1735526188467,13.16947881,191.49,191.37,4.18188181]
[1735526188673,2.6162,191.49,191.39,13.16947881]
[1735526188873,286.67442359,191.52,191.39,13.16947881]
[1735526190174,2.616,191.51,191.43,2.6168]
[1735526190376,2.616,191.51,191.43,3.22]
[1735526190785,7.52166195,191.56,191.43,3.22]
[1735526191077,7.52166195,191.56,191.44,6.2322]
[1735526191374,7.52166195,191.56,191.45,13.16947881]
[1735526191579,14.61994784,191.56,191.45,13.16947881]
[1735526191776,7.09828589,191.56,191.51,2.6159]
[1735526191980,7.09828589,191.56,191.51,5.8359]
[1735526192276,7.09828589,191.6,191.51,5.8359]
[1735526192675,9.71308589,191.6,191.53,2.6155]
[1735526193177,2.6148,191.6,191.51,16.38947881]
[1735526193382,20.2677647,191.63,191.51,16.38947881]
[1735526193683,2.6144,191.62,191.52,0.96118486]
[1735526193880,2.6144,191.62,191.55,2.6153]
[1735526194378,20.2677647,191.63,191.51,16.38947881]
[1735526194379,13.16947881,191.63,191.51,13.16947881]
[1735526194683,7.09828589,191.69,191.54,13.16947881]
[1735526194684,13.16947881,191.66,191.54,13.16947881]
[1735526194883,13.16947881,191.66,191.55,3.22]
[1735526195378,13.16947881,191.66,191.51,13.16947881]
[1735526195587,13.16947881,191.6,191.48,13.16947881]
[1735526195883,2.6153,191.56,191.49,6.797385]
[1735526196083,2.6153,191.56,191.49,5.8361]
[1735526196683,2.6153,191.56,191.49,2.6161]
[1735526196979,13.16947881,191.57,191.47,3.22]
[1735526197182,13.16947881,191.57,191.46,9.389]
[1735526197382,13.16947881,191.57,191.47,4.18140424]
[1735526197579,13.16947881,191.57,191.47,3.22]
[1735526197879,13.16947881,191.57,191.48,0.96139797]
[1735526198084,13.16947881,191.57,191.48,3.22]
[1735526198485,13.16947881,191.57,191.48,5.8361]
[1735526198486,2.6153,191.55,191.48,5.8361]
[1735526198681,13.16947881,191.57,191.48,2.6161]
[1735526198983,13.16947881,191.57,191.47,3.22]
[1735526199482,2.6155,191.54,191.47,3.22]
[1735526200384,2.6155,191.54,191.47,5.8363]
[1735526200778,13.16947881,191.57,191.47,5.8363]
[1735526200986,2.6157,191.53,191.47,5.8363]
[1735526201685,13.16947881,191.54,191.43,3.22]
[1735526201885,3.22,191.58,191.43,3.22]
[1735526201886,13.16947881,191.51,191.43,3.22]
[1735526202081,15.78537881,191.51,191.44,2.6167]
[1735526202284,2.6159,191.51,191.44,2.6167]
[1735526204088,2.616,191.5,191.43,3.22]
[1735526204286,3.22,191.53,191.42,5.8371]
[1735526204489,3.22,191.53,191.42,2.6171]
[1735526205587,2.6163,191.48,191.42,2.6171]
[1735526205989,3.22,191.53,191.41,16.38947881]
[1735526206186,2.6162,191.49,191.43,2.6169]
[1735526208193,2.6164,191.48,191.41,5.8371]
[1735526208387,2.6164,191.48,191.39,3.22]
[1735526208582,2.6164,191.48,191.4,0.96170703]
[1735526208889,2.6164,191.48,191.39,3.22]
[1735526209092,2.6164,191.48,191.4,0.96170221]
[1735526209294,2.6164,191.48,191.39,3.22]
[1735526209489,2.6164,191.48,191.42,2.6171]
[1735526209689,2.6166,191.46,191.38,13.16947881]
[1735526209990,2.6166,191.46,191.39,3.22]
[1735526210382,2.6166,191.46,191.41,2.6172]
[1735526211194,2.6164,191.48,191.41,2.6172]
[1735526211394,13.16947881,191.51,191.41,2.6172]
[1735526211692,13.16947881,191.51,191.39,2.6174]
[1735526211896,2.6168,191.45,191.39,2.6174]
[1735526212393,2.6169,191.44,191.37,2.6177]
[1735526213593,16.38947881,191.48,191.37,2.6177]
[1735526213795,2.617,191.43,191.37,2.6177]
[1735526214592,13.16947881,191.41,191.29,3.22]
[1735526215390,2.6178,191.37,191.32,2.6185]
[1735526215598,13.16947881,191.41,191.32,2.6185]
[1735526215792,13.16947881,191.41,191.29,3.22]
[1735526216394,2.618,191.36,191.29,5.8388]
[1735526216599,2.618,191.36,191.29,2.6188]
[1735526217394,16.38947881,191.38,191.25,13.16947881]
[1735526217600,16.38947881,191.38,191.23,9.5118]
[1735526217601,13.16947881,191.35,191.23,12.7318]
[1735526217800,13.16947881,191.35,191.23,9.5118]
[1735526218099,13.16947881,191.35,191.23,12.7318]
[1735526218300,2.6187,191.31,191.24,2.6195]
[1735526218997,2.6187,191.31,191.25,2.6194]
[1735526220294,16.38947881,191.32,191.2,2.62]
[1735526220491,3.22,191.31,191.19,13.16947881]
[1735526220693,3.22,191.31,191.17,73.95730912]
[1735526220896,3.22,191.31,191.19,13.16947881]
[1735526221304,13.16947881,191.32,191.19,13.16947881]
[1735526221897,2.6186,191.31,191.19,13.16947881]
[1735526223009,13.16947881,191.32,191.19,13.16947881]
[1735526223399,6.84400782,191.34,191.22,13.16947881]
[1735526223600,6.84400782,191.34,191.23,9.4904]
[1735526223895,3.62400782,191.34,191.23,9.4904]
[1735526224495,2.6185,191.33,191.26,2.6193]
[1735526224700,3.62400782,191.34,191.26,2.6193]
[1735526225502,2.6185,191.32,191.25,2.6194]
[1735526225703,3.62400782,191.34,191.25,2.6194]
[1735526226303,2.6185,191.32,191.25,2.6194]
[1735526227504,2.6185,191.32,191.23,8.89]
[1735526227505,13.16947881,191.32,191.23,8.89]
[1735526227898,15.78807881,191.32,191.23,6.2704]
[1735526229011,15.78807881,191.32,191.25,2.6194]
[1735526229512,13.16947881,191.32,191.23,9.4904]
[1735526229713,13.16947881,191.32,191.23,6.2704]
[1735526230117,2.6191,191.28,191.23,6.2704]
[1735526230614,13.16947881,191.29,191.17,73.95730912]
[1735526230912,13.16947881,191.26,191.17,70.73730912]
[1735526231308,2.62,191.21,191.17,70.73730912]
[1735526231505,13.16947881,191.23,191.17,70.73730912]
[1735526232214,2.6203,191.19,191.17,70.73730912]
[1735526234013,2.6201,191.2,191.17,70.73730912]
[1735526237026,13.16947881,191.23,191.17,70.73730912]
[1735526237027,2.6203,191.19,191.17,70.73730912]
[1735526237731,2.62,191.22,191.17,73.35780912]
[1735526237934,3.22,191.25,191.17,70.73730912]
[1735526238136,13.16947881,191.26,191.17,70.73730912]
[1735526238432,15.78877881,191.26,191.22,2.6198]
[1735526239327,13.16947881,191.26,191.17,70.73730912]
[1735526239530,2.6195,191.25,191.2,2.62]
[1735526240629,13.16947881,191.26,191.17,70.73730912]
[1735526240821,2.6196,191.24,191.19,2.6202]
[1735526241023,13.16947881,191.23,191.17,70.73730912]
[1735526241338,13.16947881,191.2,191.17,70.73730912]
[1735526241736,2.6204,191.18,191.17,70.73730912]
[1735526244239,2.6203,191.19,191.17,70.73730912]
[1735526244436,13.16947881,191.2,191.17,70.73730912]
[1735526245540,2.6204,191.18,191.17,70.73730912]
[1735526250143,2.6203,191.19,191.17,70.73730912]
[1735526250336,13.16947881,191.2,191.17,70.73730912]
[1735526250639,3.22,191.21,191.17,70.73730912]
[1735526251140,13.16947881,191.23,191.17,70.73730912]
[1735526251338,20.2677647,191.26,191.17,70.73730912]